[Event "Titled Tuesday Blitz June 15 2021"]
[White "Lazavik, Denis"]
[Black "Shipov, Sergei"]
[WhiteFideId "13515110"]
[BlackFideId "4113624"]
[WhiteElo "2436"]
[BlackElo "2796"]
[Result "1-0"]
[Round "11"]
[TimeControl "180+1"]
[Date "2021.06.15"]
[WhiteClock "0:00:08"]
[BlackClock "0:00:09"]

1. d4 {[%clk 0:03:00]}  d5 {[%clk 0:02:58]} 2. c4 {[%clk 0:03:00]}  e6 {[%clk 0:02:58]} 3. Nf3 {[%clk 0:03:00]}  c5 {[%clk 0:02:58]} 4. cxd5 {[%clk 0:03:00]}  exd5 {[%clk 0:02:59]} 5. g3 {[%clk 0:03:01]}  Nc6 {[%clk 0:02:58]} 6. Bg2 {[%clk 0:03:01]}  Nf6 {[%clk 0:02:58]} 7. O-O {[%clk 0:03:00]}  Be7 {[%clk 0:02:58]} 8. Nc3 {[%clk 0:02:55]}  O-O {[%clk 0:02:58]} 9. Bg5 {[%clk 0:02:47]}  cxd4 {[%clk 0:02:56]} 10. Nxd4 {[%clk 0:02:46]}  h6 {[%clk 0:02:56]} 11. Be3 {[%clk 0:02:36]}  Re8 {[%clk 0:02:56]} 12. Nb3 {[%clk 0:02:29]}  Be6 {[%clk 0:02:47]} 13. Rc1 {[%clk 0:02:26]}  h5 {[%clk 0:02:44]} 14. Bc5 {[%clk 0:02:19]}  h4 {[%clk 0:02:43]} 15. Bxe7 {[%clk 0:02:12]}  Qxe7 {[%clk 0:02:42]} 16. Qd2 {[%clk 0:02:03]}  h3 {[%clk 0:02:42]} 17. Bh1 {[%clk 0:02:02]}  Rad8 {[%clk 0:02:21]} 18. Nd4 {[%clk 0:02:00]}  Bg4 {[%clk 0:02:21]} 19. Qf4 {[%clk 0:01:50]}  Ne5 {[%clk 0:02:00]} 20. Nf5 {[%clk 0:01:38]}  Qe6 {[%clk 0:01:53]} 21. Nd4 {[%clk 0:01:24]}  Qd7 {[%clk 0:01:51]} 22. Rfd1 {[%clk 0:01:08]}  Ng6 {[%clk 0:01:50]} 23. Qd2 {[%clk 0:01:09]}  Qe7 {[%clk 0:01:50]} 24. Bf3 {[%clk 0:00:58]}  Bxf3 {[%clk 0:01:36]} 25. exf3 {[%clk 0:00:59]}  Ne5 {[%clk 0:01:27]} 26. Qf4 {[%clk 0:00:53]}  Nd3 {[%clk 0:01:07]} 27. Nf5 {[%clk 0:00:49]}  Nxf4 {[%clk 0:00:34]} 28. Nxe7+ {[%clk 0:00:48]}  Rxe7 {[%clk 0:00:35]} 29. gxf4 {[%clk 0:00:49]}  g6 {[%clk 0:00:16]} 30. Rd4 {[%clk 0:00:47]}  Red7 {[%clk 0:00:16]} 31. Ne2 {[%clk 0:00:41]}  Kg7 {[%clk 0:00:16]} 32. f5 {[%clk 0:00:40]}  g5 {[%clk 0:00:16]} 33. Kf1 {[%clk 0:00:39]}  Nh5 {[%clk 0:00:15]} 34. f4 {[%clk 0:00:29]}  g4 {[%clk 0:00:15]} 35. f3 {[%clk 0:00:20]}  gxf3 {[%clk 0:00:14]} 36. Ng1 {[%clk 0:00:21]}  Kf6 {[%clk 0:00:14]} 37. Nxf3 {[%clk 0:00:20]}  Kxf5 {[%clk 0:00:14]} 38. Nh4+ {[%clk 0:00:21]}  Kg4 {[%clk 0:00:14]} 39. f5+ {[%clk 0:00:20]}  Kg5 {[%clk 0:00:14]} 40. Nf3+ {[%clk 0:00:20]}  Kxf5 {[%clk 0:00:14]} 41. Rh4 {[%clk 0:00:21]}  Nf4 {[%clk 0:00:13]} 42. Re1 {[%clk 0:00:20]}  d4 {[%clk 0:00:13]} 43. Re5+ {[%clk 0:00:20]}  Kg6 {[%clk 0:00:13]} 44. Rxf4 {[%clk 0:00:19]}  f6 {[%clk 0:00:13]} 45. Ref5 {[%clk 0:00:15]}  Rd6 {[%clk 0:00:12]} 46. Nh4+ {[%clk 0:00:15]}  Kg7 {[%clk 0:00:12]} 47. Rg4+ {[%clk 0:00:13]}  Kf7 {[%clk 0:00:12]} 48. Rf2 {[%clk 0:00:13]}  d3 {[%clk 0:00:12]} 49. Rd2 {[%clk 0:00:13]}  Rc6 {[%clk 0:00:11]} 50. Nf3 {[%clk 0:00:13]}  Rc2 {[%clk 0:00:10]} 51. Kf2 {[%clk 0:00:11]}  Re8 {[%clk 0:00:09]} 52. Rxc2 {[%clk 0:00:10]}  dxc2 {[%clk 0:00:09]} 53. Rc4 {[%clk 0:00:11]}  Rg8 {[%clk 0:00:10]} 54. Ne1 {[%clk 0:00:09]}  Rd8 {[%clk 0:00:08]} 55. Rxc2 {[%clk 0:00:09]}  Rd1 {[%clk 0:00:08]} 56. Nf3 {[%clk 0:00:09]}  Ke6 {[%clk 0:00:08]} 57. Kg3 {[%clk 0:00:09]}  Kd5 {[%clk 0:00:08]} 58. Kxh3 {[%clk 0:00:08]}  Ke4 {[%clk 0:00:09]} 59. Kg3 {[%clk 0:00:09]}  Rd3 {[%clk 0:00:09]} 60. Re2+ {[%clk 0:00:08]}  Kf5 {[%clk 0:00:09]} 61. h4 {[%clk 0:00:09]}  b5 {[%clk 0:00:09]} 62. h5 {[%clk 0:00:08]}  b4 {[%clk 0:00:09]} 63. Rh2 {[%clk 0:00:08]}  Ke4 {[%clk 0:00:09]} 64. Rh4+ {[%clk 0:00:09]}  Kf5 {[%clk 0:00:08]} 65. h6 {[%clk 0:00:09]}  Rd8 {[%clk 0:00:08]} 66. Rxb4 {[%clk 0:00:09]}  Kg6 {[%clk 0:00:08]} 67. Rh4 {[%clk 0:00:09]}  Kh7 {[%clk 0:00:08]} 68. Rf4 {[%clk 0:00:08]}  Rd6 {[%clk 0:00:08]} 69. Rh4 {[%clk 0:00:06]}  Rb6 {[%clk 0:00:08]} 70. b3 {[%clk 0:00:06]}  Ra6 {[%clk 0:00:08]} 71. Ra4 {[%clk 0:00:06]}  Rxa4 {[%clk 0:00:08]} 72. bxa4 {[%clk 0:00:06]}  Kxh6 {[%clk 0:00:09]} 73. Kf4 {[%clk 0:00:07]}  Kg6 {[%clk 0:00:09]} 74. Nd4 {[%clk 0:00:07]}  Kf7 {[%clk 0:00:08]} 75. Nc6 {[%clk 0:00:08]}  a6 {[%clk 0:00:09]} 76. Nb8 {[%clk 0:00:08]}  a5 {[%clk 0:00:09]} 77. Nc6 {[%clk 0:00:08]} 1-0


[Site "https://www.chess.com"]

[Event "Titled Tuesday Blitz June 15 2021"]
[White "Mekhitarian, Krikor Sevag"]
[Black "Kamsky, Gata"]
[WhiteFideId "2107660"]
[BlackFideId "2000024"]
[WhiteElo "2598"]
[BlackElo "2644"]
[Result "1-0"]
[Round "11"]
[TimeControl "180+1"]
[Date "2021.06.15"]
[WhiteClock "0:00:06"]
[BlackClock "0:00:12"]

1. e4 {[%clk 0:03:00]}  c5 {[%clk 0:02:13]} 2. Nf3 {[%clk 0:02:59]}  e6 {[%clk 0:02:13]} 3. d4 {[%clk 0:02:59]}  cxd4 {[%clk 0:02:12]} 4. Nxd4 {[%clk 0:03:00]}  a6 {[%clk 0:02:11]} 5. Bd3 {[%clk 0:03:00]}  g6 {[%clk 0:02:09]} 6. O-O {[%clk 0:02:50]}  Bg7 {[%clk 0:02:02]} 7. Be3 {[%clk 0:02:44]}  Nf6 {[%clk 0:02:01]} 8. c4 {[%clk 0:02:41]}  O-O {[%clk 0:01:54]} 9. Nc3 {[%clk 0:02:40]}  d6 {[%clk 0:01:53]} 10. Rc1 {[%clk 0:02:39]}  Nbd7 {[%clk 0:01:50]} 11. h3 {[%clk 0:02:35]}  Qc7 {[%clk 0:01:44]} 12. Re1 {[%clk 0:02:35]}  b6 {[%clk 0:01:44]} 13. Qd2 {[%clk 0:02:31]}  Bb7 {[%clk 0:01:43]} 14. Bh6 {[%clk 0:02:29]}  Rfd8 {[%clk 0:01:35]} 15. Bxg7 {[%clk 0:02:28]}  Kxg7 {[%clk 0:01:35]} 16. b3 {[%clk 0:02:23]}  h6 {[%clk 0:01:35]} 17. Qe3 {[%clk 0:02:13]}  e5 {[%clk 0:01:32]} 18. Nde2 {[%clk 0:02:09]}  Nc5 {[%clk 0:01:32]} 19. Bc2 {[%clk 0:02:08]}  a5 {[%clk 0:01:31]} 20. Rcd1 {[%clk 0:02:08]}  Ne6 {[%clk 0:01:30]} 21. Rd2 {[%clk 0:02:05]}  Qc5 {[%clk 0:01:28]} 22. Red1 {[%clk 0:01:59]}  Qxe3 {[%clk 0:01:20]} 23. fxe3 {[%clk 0:02:00]}  Ne8 {[%clk 0:01:14]} 24. Nb5 {[%clk 0:01:54]}  Kf8 {[%clk 0:01:05]} 25. Nxd6 {[%clk 0:01:51]}  Bc6 {[%clk 0:01:05]} 26. Nc3 {[%clk 0:01:45]}  Nxd6 {[%clk 0:00:55]} 27. Rxd6 {[%clk 0:01:45]}  Rac8 {[%clk 0:00:53]} 28. Rxd8+ {[%clk 0:01:39]}  Nxd8 {[%clk 0:00:45]} 29. Kf2 {[%clk 0:01:17]}  Ne6 {[%clk 0:00:44]} 30. h4 {[%clk 0:01:11]}  Rd8 {[%clk 0:00:39]} 31. Rxd8+ {[%clk 0:01:10]}  Nxd8 {[%clk 0:00:38]} 32. Nd5 {[%clk 0:01:07]}  b5 {[%clk 0:00:35]} 33. cxb5 {[%clk 0:01:00]}  Bxb5 {[%clk 0:00:35]} 34. Nc3 {[%clk 0:00:56]}  Ba6 {[%clk 0:00:31]} 35. Bd1 {[%clk 0:00:53]}  Ne6 {[%clk 0:00:28]} 36. Be2 {[%clk 0:00:53]}  Bb7 {[%clk 0:00:28]} 37. Bc4 {[%clk 0:00:50]}  Nc5 {[%clk 0:00:28]} 38. Bd5 {[%clk 0:00:50]}  Ba6 {[%clk 0:00:28]} 39. a3 {[%clk 0:00:41]}  Ke7 {[%clk 0:00:28]} 40. Kg3 {[%clk 0:00:38]}  f5 {[%clk 0:00:25]} 41. exf5 {[%clk 0:00:34]}  gxf5 {[%clk 0:00:25]} 42. b4 {[%clk 0:00:35]}  axb4 {[%clk 0:00:24]} 43. axb4 {[%clk 0:00:36]}  Nd7 {[%clk 0:00:22]} 44. b5 {[%clk 0:00:34]}  Bc8 {[%clk 0:00:22]} 45. Kf3 {[%clk 0:00:30]}  Kd6 {[%clk 0:00:21]} 46. Bc6 {[%clk 0:00:26]}  Nf6 {[%clk 0:00:20]} 47. g3 {[%clk 0:00:24]}  Be6 {[%clk 0:00:18]} 48. e4 {[%clk 0:00:24]}  Kc5 {[%clk 0:00:16]} 49. exf5 {[%clk 0:00:24]}  Bxf5 {[%clk 0:00:16]} 50. Ke3 {[%clk 0:00:18]}  Ng4+ {[%clk 0:00:14]} 51. Kd2 {[%clk 0:00:15]}  Nf6 {[%clk 0:00:15]} 52. Na4+ {[%clk 0:00:11]}  Kb4 {[%clk 0:00:15]} 53. Nb2 {[%clk 0:00:10]}  Kc5 {[%clk 0:00:15]} 54. Ke3 {[%clk 0:00:09]}  Ng4+ {[%clk 0:00:15]} 55. Kf3 {[%clk 0:00:09]}  Nf6 {[%clk 0:00:15]} 56. Ke3 {[%clk 0:00:07]}  Ng4+ {[%clk 0:00:15]} 57. Kd2 {[%clk 0:00:07]}  Nf6 {[%clk 0:00:16]} 58. Nd3+ {[%clk 0:00:08]}  Kd4 {[%clk 0:00:16]} 59. Ne1 {[%clk 0:00:07]}  Kc5 {[%clk 0:00:16]} 60. Nf3 {[%clk 0:00:06]}  Ng4 {[%clk 0:00:16]} 61. Ke2 {[%clk 0:00:06]}  Be6 {[%clk 0:00:13]} 62. Nd2 {[%clk 0:00:06]}  Kd4 {[%clk 0:00:12]} 63. b6 {[%clk 0:00:05]}  Kc5 {[%clk 0:00:12]} 64. b7 {[%clk 0:00:06]} 1-0


[Site "https://www.chess.com"]

[Event "Titled Tuesday Blitz June 15 2021"]
[White "Moskalenko, Alexander"]
[Black "Gabrielian, Artur"]
[WhiteFideId "4155351"]
[BlackFideId "4131002"]
[WhiteElo "2495"]
[BlackElo "2539"]
[Result "1-0"]
[Round "11"]
[TimeControl "180+1"]
[Date "2021.06.15"]
[WhiteClock "0:00:10"]
[BlackClock "0:00:12"]

1. f4 {[%clk 0:03:00]}  Nf6 {[%clk 0:02:59]} 2. Nf3 {[%clk 0:03:01]}  g6 {[%clk 0:03:00]} 3. d3 {[%clk 0:03:01]}  Bg7 {[%clk 0:03:00]} 4. g3 {[%clk 0:03:02]}  O-O {[%clk 0:03:00]} 5. Bg2 {[%clk 0:03:03]}  d6 {[%clk 0:03:01]} 6. O-O {[%clk 0:03:03]}  c5 {[%clk 0:03:01]} 7. c3 {[%clk 0:03:04]}  Nc6 {[%clk 0:03:02]} 8. e4 {[%clk 0:03:04]}  Rb8 {[%clk 0:03:00]} 9. h3 {[%clk 0:03:03]}  b5 {[%clk 0:03:01]} 10. g4 {[%clk 0:03:03]}  b4 {[%clk 0:03:01]} 11. f5 {[%clk 0:03:04]}  bxc3 {[%clk 0:03:01]} 12. bxc3 {[%clk 0:03:05]}  Nd7 {[%clk 0:02:59]} 13. Be3 {[%clk 0:02:54]}  Qa5 {[%clk 0:02:55]} 14. d4 {[%clk 0:02:51]}  cxd4 {[%clk 0:02:52]} 15. cxd4 {[%clk 0:02:52]}  Ba6 {[%clk 0:02:51]} 16. Rf2 {[%clk 0:02:41]}  Nc5 {[%clk 0:02:40]} 17. Rc2 {[%clk 0:02:26]}  Nb4 {[%clk 0:02:38]} 18. f6 {[%clk 0:01:18]}  Bxf6 {[%clk 0:02:31]} 19. e5 {[%clk 0:01:18]}  Bg7 {[%clk 0:02:29]} 20. Bd2 {[%clk 0:01:13]}  Ne4 {[%clk 0:02:16]} 21. a3 {[%clk 0:01:08]}  Nxd2 {[%clk 0:01:27]} 22. Qxd2 {[%clk 0:01:09]}  Qa4 {[%clk 0:01:27]} 23. Rc7 {[%clk 0:01:08]}  Nd5 {[%clk 0:01:00]} 24. Rxa7 {[%clk 0:01:08]}  Qb5 {[%clk 0:00:52]} 25. Nc3 {[%clk 0:01:03]}  Nxc3 {[%clk 0:00:52]} 26. Qxc3 {[%clk 0:01:04]}  Qb6 {[%clk 0:00:52]} 27. Rxe7 {[%clk 0:01:02]}  dxe5 {[%clk 0:00:52]} 28. Nxe5 {[%clk 0:00:59]}  Rbd8 {[%clk 0:00:52]} 29. Rd1 {[%clk 0:00:53]}  Bf6 {[%clk 0:00:50]} 30. Nd7 {[%clk 0:00:51]}  Qd6 {[%clk 0:00:46]} 31. Nxf6+ {[%clk 0:00:51]}  Qxf6 {[%clk 0:00:47]} 32. Re5 {[%clk 0:00:50]}  Qxe5 {[%clk 0:00:40]} 33. dxe5 {[%clk 0:00:50]}  Rxd1+ {[%clk 0:00:40]} 34. Kh2 {[%clk 0:00:51]}  Rfd8 {[%clk 0:00:39]} 35. e6 {[%clk 0:00:47]}  fxe6 {[%clk 0:00:36]} 36. Qf6 {[%clk 0:00:45]}  Bc4 {[%clk 0:00:31]} 37. Be4 {[%clk 0:00:26]}  R1d4 {[%clk 0:00:28]} 38. Qe5 {[%clk 0:00:23]}  Rd2+ {[%clk 0:00:24]} 39. Kg3 {[%clk 0:00:23]}  Bd5 {[%clk 0:00:24]} 40. Bxd5 {[%clk 0:00:23]}  R2xd5 {[%clk 0:00:21]} 41. Qxe6+ {[%clk 0:00:23]}  Kg7 {[%clk 0:00:21]} 42. Qe7+ {[%clk 0:00:15]}  Kg8 {[%clk 0:00:22]} 43. Qe6+ {[%clk 0:00:15]}  Kg7 {[%clk 0:00:21]} 44. Qe7+ {[%clk 0:00:15]}  Kg8 {[%clk 0:00:19]} 45. a4 {[%clk 0:00:13]}  R8d7 {[%clk 0:00:18]} 46. Qe6+ {[%clk 0:00:12]}  Kg7 {[%clk 0:00:18]} 47. a5 {[%clk 0:00:12]}  Rd3+ {[%clk 0:00:18]} 48. Kg2 {[%clk 0:00:10]}  Rd2+ {[%clk 0:00:18]} 49. Kg3 {[%clk 0:00:11]}  R2d5 {[%clk 0:00:18]} 50. a6 {[%clk 0:00:10]}  R5d6 {[%clk 0:00:17]} 51. Qe5+ {[%clk 0:00:11]}  Kf7 {[%clk 0:00:16]} 52. Qf4+ {[%clk 0:00:07]}  Ke7 {[%clk 0:00:16]} 53. Qg5+ {[%clk 0:00:07]}  Ke8 {[%clk 0:00:15]} 54. Qa5 {[%clk 0:00:08]}  Ra7 {[%clk 0:00:14]} 55. Qe5+ {[%clk 0:00:09]}  Kd7 {[%clk 0:00:12]} 56. Qg7+ {[%clk 0:00:09]}  Ke6 {[%clk 0:00:12]} 57. Qxa7 {[%clk 0:00:10]} 1-0


[Site "https://www.chess.com"]

[Event "Titled Tuesday Blitz June 15 2021"]
[White "Nesterov, Arseniy"]
[Black "elcandado"]
[WhiteFideId "24198455"]
[WhiteElo "2441"]
[BlackElo "2655"]
[Result "1/2-1/2"]
[Round "11"]
[TimeControl "180+1"]
[Date "2021.06.15"]
[WhiteClock "0:00:13"]
[BlackClock "0:00:28"]

1. d4 {[%clk 0:03:00]}  Nf6 {[%clk 0:02:59]} 2. c4 {[%clk 0:03:01]}  e6 {[%clk 0:02:59]} 3. Nf3 {[%clk 0:03:00]}  d5 {[%clk 0:02:58]} 4. Nc3 {[%clk 0:03:00]}  dxc4 {[%clk 0:02:58]} 5. e4 {[%clk 0:03:00]}  Bb4 {[%clk 0:02:56]} 6. Bxc4 {[%clk 0:03:00]}  Nxe4 {[%clk 0:02:55]} 7. O-O {[%clk 0:03:00]}  Nxc3 {[%clk 0:02:55]} 8. bxc3 {[%clk 0:03:00]}  Bd6 {[%clk 0:02:55]} 9. Re1 {[%clk 0:02:37]}  O-O {[%clk 0:02:52]} 10. Ne5 {[%clk 0:02:36]}  Nc6 {[%clk 0:02:51]} 11. Qg4 {[%clk 0:02:35]}  f5 {[%clk 0:02:46]} 12. Qf3 {[%clk 0:02:34]}  Nxe5 {[%clk 0:02:46]} 13. dxe5 {[%clk 0:02:34]}  Bc5 {[%clk 0:02:44]} 14. Bf4 {[%clk 0:02:29]}  Qe8 {[%clk 0:02:35]} 15. Rad1 {[%clk 0:02:26]}  Rb8 {[%clk 0:02:33]} 16. h4 {[%clk 0:02:11]}  Bd7 {[%clk 0:02:18]} 17. h5 {[%clk 0:02:09]}  h6 {[%clk 0:02:14]} 18. Rd2 {[%clk 0:02:03]}  b5 {[%clk 0:02:05]} 19. Bb3 {[%clk 0:02:01]}  a5 {[%clk 0:02:05]} 20. Red1 {[%clk 0:01:50]}  Bc6 {[%clk 0:02:03]} 21. Qg3 {[%clk 0:01:50]}  Kh8 {[%clk 0:01:54]} 22. Qh4 {[%clk 0:01:18]}  a4 {[%clk 0:01:42]} 23. Bc2 {[%clk 0:01:17]}  Qe7 {[%clk 0:01:35]} 24. Qg3 {[%clk 0:01:10]}  Rfd8 {[%clk 0:01:18]} 25. Bd3 {[%clk 0:00:34]}  Rd5 {[%clk 0:01:04]} 26. c4 {[%clk 0:00:31]}  bxc4 {[%clk 0:00:59]} 27. Bxc4 {[%clk 0:00:32]}  Rxd2 {[%clk 0:00:56]} 28. Rxd2 {[%clk 0:00:33]}  Rd8 {[%clk 0:00:41]} 29. Rxd8+ {[%clk 0:00:22]}  Qxd8 {[%clk 0:00:42]} 30. Bxe6 {[%clk 0:00:21]}  Qd1+ {[%clk 0:00:41]} 31. Kh2 {[%clk 0:00:21]}  Qxh5+ {[%clk 0:00:41]} 32. Kg1 {[%clk 0:00:15]}  Qd1+ {[%clk 0:00:37]} 33. Kh2 {[%clk 0:00:15]}  Qh5+ {[%clk 0:00:37]} 34. Kg1 {[%clk 0:00:13]}  Qd1+ {[%clk 0:00:29]} 35. Kh2 {[%clk 0:00:13]}  Qh5+ {[%clk 0:00:28]} 1/2-1/2


[Site "https://www.chess.com"]

[Event "Titled Tuesday Blitz June 15 2021"]
[White "Pakleza, Zbigniew"]
[Black "Nazaretyan, Tigran"]
[WhiteFideId "1119290"]
[BlackFideId "24162345"]
[WhiteElo "2526"]
[BlackElo "2247"]
[Result "0-1"]
[Round "11"]
[TimeControl "180+1"]
[Date "2021.06.15"]
[WhiteClock "0:00:04"]
[BlackClock "0:00:37"]

1. d4 {[%clk 0:03:00]}  Nf6 {[%clk 0:02:50]} 2. Nf3 {[%clk 0:03:00]}  g6 {[%clk 0:02:49]} 3. Bf4 {[%clk 0:03:00]}  Bg7 {[%clk 0:02:49]} 4. e3 {[%clk 0:03:01]}  O-O {[%clk 0:02:49]} 5. Be2 {[%clk 0:03:01]}  d6 {[%clk 0:02:50]} 6. h3 {[%clk 0:03:01]}  Nbd7 {[%clk 0:02:49]} 7. O-O {[%clk 0:03:02]}  b6 {[%clk 0:02:50]} 8. c3 {[%clk 0:03:02]}  Bb7 {[%clk 0:02:50]} 9. Nbd2 {[%clk 0:03:02]}  e6 {[%clk 0:02:49]} 10. Bh2 {[%clk 0:03:02]}  Qe7 {[%clk 0:02:49]} 11. a4 {[%clk 0:03:03]}  a6 {[%clk 0:02:48]} 12. Qb3 {[%clk 0:03:02]}  Rfe8 {[%clk 0:02:41]} 13. Rfc1 {[%clk 0:02:51]}  e5 {[%clk 0:02:34]} 14. Bc4 {[%clk 0:02:46]}  Bh6 {[%clk 0:02:21]} 15. Rd1 {[%clk 0:02:31]}  Kg7 {[%clk 0:02:14]} 16. Rac1 {[%clk 0:02:01]}  Rf8 {[%clk 0:02:07]} 17. Qa3 {[%clk 0:01:50]}  Rae8 {[%clk 0:02:03]} 18. Bf1 {[%clk 0:01:46]}  Ne4 {[%clk 0:02:02]} 19. Nxe4 {[%clk 0:01:42]}  Bxe4 {[%clk 0:02:02]} 20. dxe5 {[%clk 0:01:04]}  dxe5 {[%clk 0:01:59]} 21. Qxe7 {[%clk 0:00:40]}  Rxe7 {[%clk 0:02:00]} 22. Nd2 {[%clk 0:00:34]}  Bc6 {[%clk 0:01:50]} 23. b3 {[%clk 0:00:29]}  a5 {[%clk 0:01:48]} 24. Bc4 {[%clk 0:00:20]}  Nc5 {[%clk 0:01:43]} 25. Kf1 {[%clk 0:00:20]}  f6 {[%clk 0:01:36]} 26. Bg1 {[%clk 0:00:20]}  Rd8 {[%clk 0:01:33]} 27. Nb1 {[%clk 0:00:18]}  Red7 {[%clk 0:01:32]} 28. Rxd7+ {[%clk 0:00:18]}  Rxd7 {[%clk 0:01:33]} 29. f3 {[%clk 0:00:18]}  f5 {[%clk 0:01:32]} 30. Ke2 {[%clk 0:00:18]}  Kf6 {[%clk 0:01:32]} 31. Rd1 {[%clk 0:00:12]}  e4 {[%clk 0:01:28]} 32. f4 {[%clk 0:00:10]}  Rxd1 {[%clk 0:01:22]} 33. Kxd1 {[%clk 0:00:10]}  Bg7 {[%clk 0:01:22]} 34. Kc2 {[%clk 0:00:09]}  Nd3 {[%clk 0:01:21]} 35. g3 {[%clk 0:00:09]}  Ne1+ {[%clk 0:01:20]} 36. Kd1 {[%clk 0:00:08]}  Nf3 {[%clk 0:01:21]} 37. Bf2 {[%clk 0:00:08]}  Bd7 {[%clk 0:01:16]} 38. Nd2 {[%clk 0:00:08]}  Nxd2 {[%clk 0:01:12]} 39. Kxd2 {[%clk 0:00:08]}  Be6 {[%clk 0:01:12]} 40. Bxe6 {[%clk 0:00:06]}  Kxe6 {[%clk 0:01:13]} 41. Kc2 {[%clk 0:00:03]}  Kd5 {[%clk 0:01:11]} 42. c4+ {[%clk 0:00:02]}  Kc5 {[%clk 0:01:11]} 43. Be1 {[%clk 0:00:03]}  Bf6 {[%clk 0:01:09]} 44. h4 {[%clk 0:00:03]}  h6 {[%clk 0:01:08]} 45. Bd2 {[%clk 0:00:03]}  c6 {[%clk 0:01:08]} 46. Be1 {[%clk 0:00:03]}  Kd6 {[%clk 0:01:07]} 47. Bd2 {[%clk 0:00:03]}  Kc7 {[%clk 0:01:06]} 48. Be1 {[%clk 0:00:03]}  g5 {[%clk 0:00:58]} 49. fxg5 {[%clk 0:00:04]}  hxg5 {[%clk 0:00:58]} 50. h5 {[%clk 0:00:05]}  Kd7 {[%clk 0:00:58]} 51. Bc3 {[%clk 0:00:05]}  Bxc3 {[%clk 0:00:51]} 52. Kxc3 {[%clk 0:00:06]}  Ke6 {[%clk 0:00:51]} 53. c5 {[%clk 0:00:05]}  bxc5 {[%clk 0:00:48]} 54. Kc4 {[%clk 0:00:06]}  Kf6 {[%clk 0:00:42]} 55. Kxc5 {[%clk 0:00:02]}  f4 {[%clk 0:00:42]} 56. exf4 {[%clk 0:00:01]}  e3 {[%clk 0:00:40]} 57. fxg5+ {[%clk 0:00:02]}  Kxg5 {[%clk 0:00:40]} 58. b4 {[%clk 0:00:03]}  e2 {[%clk 0:00:37]} 59. bxa5 {[%clk 0:00:04]}  e1=Q {[%clk 0:00:37]} 60. Kxc6 {[%clk 0:00:04]}  Qxa5 {[%clk 0:00:37]} 0-1


[Site "https://www.chess.com"]

[Event "Titled Tuesday Blitz June 15 2021"]
[White "Sarana, Alexey"]
[Black "Demchenko, Anton"]
[WhiteFideId "24133795"]
[BlackFideId "4160258"]
[WhiteElo "2629"]
[BlackElo "2593"]
[Result "1/2-1/2"]
[Round "11"]
[TimeControl "180+1"]
[Date "2021.06.15"]
[WhiteClock "0:00:03"]
[BlackClock "0:00:05"]

1. e4 {[%clk 0:02:41]}  e5 {[%clk 0:02:59]} 2. Nf3 {[%clk 0:02:42]}  Nc6 {[%clk 0:03:00]} 3. Bc4 {[%clk 0:02:43]}  Nf6 {[%clk 0:03:00]} 4. d3 {[%clk 0:02:43]}  Be7 {[%clk 0:03:00]} 5. c3 {[%clk 0:02:42]}  O-O {[%clk 0:03:00]} 6. Nbd2 {[%clk 0:02:42]}  d6 {[%clk 0:03:01]} 7. O-O {[%clk 0:02:40]}  Kh8 {[%clk 0:03:01]} 8. a4 {[%clk 0:02:38]}  Ng8 {[%clk 0:03:00]} 9. a5 {[%clk 0:02:37]}  a6 {[%clk 0:03:00]} 10. d4 {[%clk 0:02:37]}  Bg4 {[%clk 0:02:48]} 11. h3 {[%clk 0:02:35]}  Bh5 {[%clk 0:02:48]} 12. Qb3 {[%clk 0:02:29]}  Rb8 {[%clk 0:02:32]} 13. Bd5 {[%clk 0:02:17]}  f6 {[%clk 0:02:07]} 14. Qc4 {[%clk 0:02:12]}  Be8 {[%clk 0:02:03]} 15. b4 {[%clk 0:02:12]}  Bd7 {[%clk 0:01:47]} 16. Re1 {[%clk 0:02:09]}  Qe8 {[%clk 0:01:47]} 17. Be6 {[%clk 0:02:00]}  Bxe6 {[%clk 0:01:38]} 18. Qxe6 {[%clk 0:02:01]}  Nd8 {[%clk 0:01:34]} 19. Qc4 {[%clk 0:01:58]}  c6 {[%clk 0:01:31]} 20. Nf1 {[%clk 0:01:57]}  Qf7 {[%clk 0:01:26]} 21. Qxf7 {[%clk 0:01:56]}  Nxf7 {[%clk 0:01:26]} 22. Ng3 {[%clk 0:01:55]}  g6 {[%clk 0:01:26]} 23. Be3 {[%clk 0:01:55]}  h5 {[%clk 0:01:20]} 24. Rad1 {[%clk 0:01:53]}  Kg7 {[%clk 0:01:19]} 25. Rd2 {[%clk 0:01:53]}  Rbe8 {[%clk 0:01:19]} 26. Red1 {[%clk 0:01:53]}  Bd8 {[%clk 0:01:17]} 27. dxe5 {[%clk 0:01:52]}  fxe5 {[%clk 0:01:17]} 28. c4 {[%clk 0:01:51]}  Be7 {[%clk 0:01:05]} 29. Rd3 {[%clk 0:01:47]}  Nf6 {[%clk 0:01:03]} 30. Ng5 {[%clk 0:01:36]}  Nxg5 {[%clk 0:01:03]} 31. Bxg5 {[%clk 0:01:37]}  Rd8 {[%clk 0:00:59]} 32. f3 {[%clk 0:01:37]}  Kf7 {[%clk 0:00:53]} 33. Ne2 {[%clk 0:01:34]}  Nh7 {[%clk 0:00:33]} 34. Be3 {[%clk 0:01:32]}  Rfe8 {[%clk 0:00:27]} 35. Bb6 {[%clk 0:01:32]}  Rc8 {[%clk 0:00:27]} 36. g4 {[%clk 0:01:20]}  Nf8 {[%clk 0:00:26]} 37. gxh5 {[%clk 0:00:51]}  Ne6 {[%clk 0:00:27]} 38. hxg6+ {[%clk 0:00:49]}  Kxg6 {[%clk 0:00:27]} 39. Kf2 {[%clk 0:00:49]}  Rh8 {[%clk 0:00:27]} 40. Rg1+ {[%clk 0:00:48]}  Kf7 {[%clk 0:00:27]} 41. Rh1 {[%clk 0:00:43]}  Rcg8 {[%clk 0:00:28]} 42. Be3 {[%clk 0:00:40]}  Bh4+ {[%clk 0:00:28]} 43. Kf1 {[%clk 0:00:39]}  Be7 {[%clk 0:00:28]} 44. f4 {[%clk 0:00:38]}  exf4 {[%clk 0:00:26]} 45. Nxf4 {[%clk 0:00:39]}  Nxf4 {[%clk 0:00:26]} 46. Bxf4 {[%clk 0:00:40]}  Ke6 {[%clk 0:00:27]} 47. Ke2 {[%clk 0:00:36]}  Rg2+ {[%clk 0:00:26]} 48. Kf3 {[%clk 0:00:36]}  Rc2 {[%clk 0:00:27]} 49. c5 {[%clk 0:00:23]}  dxc5 {[%clk 0:00:27]} 50. bxc5 {[%clk 0:00:23]}  Bxc5 {[%clk 0:00:28]} 51. h4 {[%clk 0:00:19]}  Rf8 {[%clk 0:00:26]} 52. Kg3 {[%clk 0:00:18]}  Rf2 {[%clk 0:00:21]} 53. Bg5 {[%clk 0:00:17]}  Bd6+ {[%clk 0:00:20]} 54. Kg4 {[%clk 0:00:17]}  Rg2+ {[%clk 0:00:14]} 55. Kh5 {[%clk 0:00:16]}  Rh8+ {[%clk 0:00:15]} 56. Kg6 {[%clk 0:00:16]}  Be7 {[%clk 0:00:15]} 57. Rhh3 {[%clk 0:00:11]}  Bxg5 {[%clk 0:00:14]} 58. hxg5 {[%clk 0:00:11]}  Rg8+ {[%clk 0:00:14]} 59. Kh7 {[%clk 0:00:11]}  R2xg5 {[%clk 0:00:14]} 60. Rh6+ {[%clk 0:00:10]}  Ke5 {[%clk 0:00:14]} 61. Rd7 {[%clk 0:00:10]}  Kxe4 {[%clk 0:00:10]} 62. Rxb7 {[%clk 0:00:10]}  Rc8 {[%clk 0:00:09]} 63. Rh4+ {[%clk 0:00:08]}  Kf3 {[%clk 0:00:08]} 64. Rb3+ {[%clk 0:00:08]}  Kg2 {[%clk 0:00:09]} 65. Rc4 {[%clk 0:00:05]}  Rf8 {[%clk 0:00:09]} 66. Rxc6 {[%clk 0:00:04]}  Rxa5 {[%clk 0:00:08]} 67. Rg6+ {[%clk 0:00:03]}  Kf2 {[%clk 0:00:08]} 68. Rbb6 {[%clk 0:00:04]}  Rff5 {[%clk 0:00:07]} 69. Kg7 {[%clk 0:00:02]}  Kf3 {[%clk 0:00:06]} 70. Rxa6 {[%clk 0:00:03]}  Rxa6 {[%clk 0:00:06]} 71. Rxa6 {[%clk 0:00:04]}  Rf4 {[%clk 0:00:06]} 72. Rf6 {[%clk 0:00:05]}  Kg4 {[%clk 0:00:06]} 73. Kg6 {[%clk 0:00:04]}  Kf3 {[%clk 0:00:05]} 74. Rf5 {[%clk 0:00:04]}  Kg4 {[%clk 0:00:05]} 75. Rxf4+ {[%clk 0:00:03]}  Kxf4 {[%clk 0:00:05]} 1/2-1/2


[Site "https://www.chess.com"]